fUSD/lending_fUSD_20240531
["ID","MTS","AMOUNT","RATE_DAILY","PERIOD"]
[328322085,1717163480454,-500.0,0.00032876,11]
[328322086,1717163480463,-500.0,0.00032876,11]
[328322087,1717163480472,-500.0,0.00032876,11]
[328322088,1717163480481,-500.0,0.00032876,11]
[328322089,1717163480490,-500.0,0.00032876,11]
[328322090,1717163480499,-500.0,0.00032876,11]
[328322091,1717163480509,-500.0,0.00032876,11]
[328322092,1717163480518,-283.20516421,0.00032876,11]
[328322093,1717163480527,-500.0,0.00032876,11]
[328322094,1717163480537,-500.0,0.00032876,11]
[328322095,1717163480546,-500.0,0.00032876,11]
[328322096,1717163480556,-500.0,0.00032876,11]
[328322097,1717163480566,-500.0,0.00032876,11]
[328322098,1717163480575,-500.0,0.00032876,11]
[328322099,1717163480585,-500.0,0.00032876,11]
[328322100,1717163480594,-500.0,0.00032876,11]
[328322101,1717163480604,-500.0,0.00032876,11]
[328322102,1717163480613,-500.0,0.00032876,11]
[328322103,1717163480623,-500.0,0.00032876,11]
[328322104,1717163480636,-500.0,0.00032876,11]
[328322105,1717163480646,-312.4584365,0.00032876,11]
[328322106,1717163480655,-500.0,0.00032876,11]
[328322107,1717163480667,-500.0,0.00032876,11]
[328322108,1717163480677,-500.0,0.00032876,11]
[328322109,1717163480686,-500.0,0.00032876,11]
[328322110,1717163480703,-500.0,0.00032876,11]
[328322111,1717163480712,-500.0,0.00032876,11]
[328322112,1717163480722,-500.0,0.00032876,11]
[328322113,1717163480731,-500.0,0.00032876,11]
[328322114,1717163480740,-500.0,0.00032876,11]
[328322115,1717163480749,-500.0,0.00032876,11]
[328322116,1717163480758,-500.0,0.00032876,11]
[328322117,1717163480767,-500.0,0.00032876,11]
[328322118,1717163480776,-500.0,0.00032876,11]
[328322119,1717163480785,-500.0,0.00032876,11]
[328322120,1717163480796,-500.0,0.00032876,11]
[328322121,1717163480806,-1598.34,0.00032876,2]
[328322122,1717163480816,-500.0,0.00032876,11]
[328322123,1717163480826,-500.0,0.00032876,11]
[328322124,1717163480835,-1598.34,0.00032876,2]
[328322125,1717163480845,-500.0,0.00032876,11]
[328322126,1717163480854,-500.0,0.00032876,11]
[328322127,1717163480864,-500.0,0.00032876,11]
[328322128,1717163480873,-500.0,0.00032876,11]
[328322129,1717163480882,-1598.34,0.00032876,2]
[328322130,1717163480892,-500.0,0.00032876,11]
[328322131,1717163480901,-500.0,0.00032876,11]
[328322132,1717163480910,-217.64714114,0.00032876,11]
[328322133,1717163480920,-1598.34,0.00032876,2]
[328322134,1717163480931,-500.0,0.00032876,11]
[328322135,1717163480942,-1460.19,0.00032876,11]
[328322136,1717163480951,-500.0,0.00032876,11]
[328322137,1717163480962,-500.0,0.00032876,11]
[328322138,1717163480972,-1598.34,0.00032876,2]
[328322139,1717163480982,-500.0,0.00032876,11]
[328322140,1717163480992,-500.0,0.00032876,11]
[328322141,1717163481003,-1460.19,0.00032876,11]
[328322142,1717163481014,-433.3259433,0.00032876,11]
[328322143,1717163481024,-1598.34,0.00032876,2]
[328322144,1717163481034,-500.0,0.00032876,11]
[328322145,1717163481044,-500.0,0.00032876,11]
[328322146,1717163481055,-1460.19,0.00032876,11]
[328322147,1717163481064,-1598.34,0.00032876,2]
[328322148,1717163481073,-500.0,0.00032876,11]
[328322149,1717163481082,-500.0,0.00032876,11]
[328322150,1717163481091,-1460.19,0.00032876,11]
[328322151,1717163481100,-500.0,0.00032876,11]
[328322152,1717163481109,-500.0,0.00032876,11]
[328322153,1717163481118,-1598.34,0.00032876,2]
[328322154,1717163481128,-500.0,0.00032876,11]
[328322155,1717163481137,-1598.34,0.00032876,2]
[328322156,1717163481146,-500.0,0.00032876,11]
[328322157,1717163481155,-193.58562427,0.00032876,11]
[328322158,1717163481165,-1460.19,0.00032876,11]
[328322159,1717163481174,-1598.34,0.00032876,2]
[328322160,1717163481184,-515.48690512,0.00032876,11]
[328322161,1717163481195,-500.0,0.00032876,11]
[328322162,1717163481204,-500.0,0.00032876,11]
[328322163,1717163481212,-1598.34,0.00032876,2]
[328322164,1717163481221,-500.0,0.00032876,11]
[328322165,1717163481229,-500.0,0.00032876,11]
[328322166,1717163481238,-1460.19,0.00032876,11]
[328322167,1717163481247,-500.0,0.00032876,11]
[328322168,1717163481256,-500.0,0.00032876,11]
[328322169,1717163481265,-1598.34,0.00032876,2]
[328322170,1717163481275,-500.0,0.00032876,11]
[328322171,1717163481284,-500.0,0.00032876,11]
[328322172,1717163481293,-1460.19,0.00032876,11]
[328322173,1717163481303,-500.0,0.00032876,11]
[328322174,1717163481312,-1598.34,0.00032876,2]
[328322175,1717163481321,-500.0,0.00032876,11]
[328322176,1717163481331,-500.0,0.00032876,11]
[328322177,1717163481340,-500.0,0.00032876,11]
[328322178,1717163481349,-500.0,0.00032876,11]
[328322179,1717163481359,-1460.19,0.00032876,11]
[328322180,1717163481368,-151.0,0.00032876,7]
[328322181,1717163481377,-1598.34,0.00032876,2]
[328322182,1717163481387,-500.0,0.00032876,11]
[328322183,1717163481396,-500.0,0.00032876,11]
[328322184,1717163481406,-500.0,0.00032876,11]
[328322185,1717163481416,-500.0,0.00032876,11]
[328322186,1717163481425,-500.0,0.00032876,11]
[328322187,1717163481435,-1460.19,0.00032876,11]
[328322188,1717163481448,-1598.34,0.00032876,2]
[328322189,1717163481457,-500.0,0.00032876,11]
[328322190,1717163481466,-241.429316,0.00032876,7]
[328322191,1717163481475,-500.0,0.00032876,11]
[328322192,1717163481484,-509.61437201,0.00032876,11]
[328322193,1717163481494,-500.0,0.00032876,11]
[328322194,1717163481504,-500.0,0.00032876,11]
[328322195,1717163481513,-1460.19,0.00032876,11]
[328322196,1717163481523,-576.36,0.00032876,11]
[328322197,1717163481532,-500.0,0.00032876,11]
[328322198,1717163481541,-500.0,0.00032876,11]
[328322199,1717163481550,-500.0,0.00032876,11]
[328322200,1717163481560,-1460.19,0.00032876,11]
[328322201,1717163481569,-1598.34,0.00032876,2]
[328322202,1717163481578,-500.0,0.00032876,11]
[328322203,1717163481587,-500.0,0.00032876,11]
[328322204,1717163481597,-500.0,0.00032876,11]
[328322205,1717163481606,-500.0,0.00032876,11]
[328322206,1717163481615,-1460.19,0.00032876,11]
[328322207,1717163481630,-500.0,0.00032876,11]
[328322208,1717163481639,-1598.34,0.00032876,2]
[328322209,1717163481648,-500.0,0.00032876,11]
[328322210,1717163481658,-500.0,0.00032876,11]
[328322211,1717163481669,-500.0,0.00032876,11]
[328322212,1717163481678,-504.80635418,0.00032876,11]
[328322213,1717163481687,-500.0,0.00032876,11]
[328322214,1717163481698,-500.0,0.00032876,11]
[328322215,1717163481709,-1598.34,0.00032876,2]
[328322216,1717163481719,-500.0,0.00032876,11]
[328322217,1717163481728,-500.0,0.00032876,11]
[328322218,1717163481737,-500.0,0.00032876,11]
[328322219,1717163481747,-500.0,0.00032876,11]
[328322220,1717163481756,-500.0,0.00032876,11]
[328322221,1717163481766,-500.0,0.00032876,11]
[328322222,1717163481775,-500.0,0.00032876,11]
[328322223,1717163481784,-500.0,0.00032876,11]
[328322224,1717163481793,-500.0,0.00032876,11]
[328322225,1717163481802,-500.0,0.00032876,11]
[328322226,1717163481812,-1598.34,0.00032876,2]
[328322227,1717163481821,-500.0,0.00032876,11]
[328322228,1717163481830,-500.0,0.00032876,11]
[328322229,1717163481839,-500.0,0.00032876,11]
[328322230,1717163481848,-500.0,0.00032876,11]
[328322231,1717163481857,-500.0,0.00032876,11]
[328322232,1717163481867,-1598.34,0.00032876,2]
[328322233,1717163481876,-500.0,0.00032876,11]
[328322234,1717163481885,-500.0,0.00032876,11]
[328322235,1717163481895,-500.0,0.00032876,11]
[328322236,1717163481904,-500.0,0.00032876,11]
[328322237,1717163481913,-500.0,0.00032876,11]
[328322238,1717163481923,-500.0,0.00032876,11]
[328322239,1717163481932,-1598.34,0.00032876,2]
[328322240,1717163481943,-500.0,0.00032876,11]
[328322241,1717163481952,-500.0,0.00032876,11]
[328322242,1717163481962,-500.0,0.00032876,11]
[328322243,1717163481971,-500.0,0.00032876,11]
[328322244,1717163481981,-500.0,0.00032876,11]
[328322245,1717163481991,-500.0,0.00032876,11]
[328322246,1717163482000,-500.0,0.00032876,11]
[328322247,1717163482010,-1598.34,0.00032876,2]
[328322248,1717163482020,-500.0,0.00032876,11]
[328322249,1717163482030,-281.14,0.00032876,11]
[328322250,1717163482039,-384.03732017,0.00032876,11]
[328322251,1717163482049,-500.0,0.00032876,11]
[328322252,1717163482059,-500.0,0.00032876,11]
[328322253,1717163482070,-500.0,0.00032876,11]
[328322254,1717163482081,-1598.34,0.00032876,2]
[328322255,1717163482091,-500.0,0.00032876,11]
[328322256,1717163482101,-500.0,0.00032876,11]
[328322257,1717163482111,-500.0,0.00032876,11]
[328322258,1717163482121,-500.0,0.00032876,11]
[328322259,1717163482131,-500.0,0.00032876,11]
[328322260,1717163482141,-500.0,0.00032876,11]
[328322261,1717163482151,-500.0,0.00032876,11]
[328322262,1717163482161,-1598.43251364,0.00032876,2]
[328322263,1717163482170,-500.0,0.00032876,11]
[328322264,1717163482180,-500.0,0.00032876,11]
[328322265,1717163482192,-500.0,0.00032876,11]
[328322266,1717163482201,-500.0,0.00032876,11]
[328322267,1717163482210,-500.0,0.00032876,11]
[328322268,1717163482218,-500.0,0.00032876,11]
[328322269,1717163482227,-500.0,0.00032876,11]
[328322270,1717163482236,-500.0,0.00032876,11]
[328322271,1717163482245,-506.16721346,0.00032876,11]
[328322272,1717163482255,-500.0,0.00032876,11]
[328322273,1717163482265,-500.0,0.00032876,11]
[328322274,1717163482274,-262.34373059,0.00032876,11]
[328322275,1717163482283,-500.0,0.00032876,11]
[328322276,1717163482293,-216.45,0.00032876,11]
[328322277,1717163482303,-500.0,0.00032876,11]
[328322278,1717163482312,-151.0,0.00032876,7]
[328322279,1717163482322,-500.0,0.00032876,11]
[328322280,1717163482331,-500.0,0.00032876,11]
[328322281,1717163482340,-500.0,0.00032876,11]
[328322282,1717163482349,-151.0,0.00032876,7]
[328322283,1717163482358,-500.0,0.00032876,11]
[328322284,1717163482368,-500.0,0.00032876,11]
[328322285,1717163482377,-500.0,0.00032876,11]
[328322286,1717163482386,-500.0,0.00032876,11]
[328322287,1717163482396,-500.0,0.00032876,11]
[328322288,1717163482405,-500.0,0.00032876,11]
[328322289,1717163482415,-500.0,0.00032876,11]
[328322290,1717163482424,-500.0,0.00032876,11]
[328322291,1717163482434,-500.0,0.00032876,11]
[328322292,1717163482445,-500.0,0.00032876,11]
[328322293,1717163482454,-500.0,0.00032876,11]
[328322294,1717163482463,-500.0,0.00032876,11]
[328322295,1717163482473,-500.0,0.00032876,11]
[328322296,1717163482483,-500.0,0.00032876,11]
[328322297,1717163482492,-471.21344428,0.00032876,11]
[328322298,1717163482502,-500.0,0.00032876,11]
[328322299,1717163482512,-500.0,0.00032876,11]
[328322300,1717163482523,-500.0,0.00032876,11]
[328322301,1717163482533,-500.0,0.00032876,11]
[328322302,1717163482544,-500.0,0.00032876,11]
[328322303,1717163482554,-500.0,0.00032876,11]
[328322304,1717163482564,-500.0,0.00032876,11]
[328322305,1717163482574,-500.0,0.00032876,11]
[328322306,1717163482585,-500.0,0.00032876,11]
[328322307,1717163482594,-500.0,0.00032876,11]
[328322308,1717163482603,-500.0,0.00032876,11]
[328322309,1717163482612,-500.0,0.00032876,11]
[328322310,1717163482621,-500.0,0.00032876,11]
[328322311,1717163482635,-500.0,0.00032876,11]
[328322312,1717163482645,-500.0,0.00032876,11]
[328322313,1717163482655,-500.0,0.00032876,11]
[328322314,1717163482664,-500.0,0.00032876,11]
[328322315,1717163482675,-500.0,0.00032876,11]
[328322316,1717163482685,-500.0,0.00032876,11]
[328322317,1717163482697,-500.0,0.00032876,11]
[328322318,1717163482707,-500.0,0.00032876,11]
[328322319,1717163482716,-500.0,0.00032876,11]
[328322320,1717163482726,-500.0,0.00032876,11]
[328322321,1717163482735,-483.74908963,0.00032876,11]
[328322322,1717163482744,-500.0,0.00032876,11]
[328322323,1717163482753,-500.0,0.00032876,11]
[328322324,1717163482763,-151.0,0.00032876,7]
[328322325,1717163482772,-500.0,0.00032876,11]
[328322326,1717163482781,-500.0,0.00032876,11]
[328322327,1717163482790,-500.0,0.00032876,11]
[328322328,1717163482800,-500.0,0.00032876,11]
[328322329,1717163482809,-500.0,0.00032876,11]
[328322330,1717163482818,-630.89,0.00032876,11]
[328322331,1717163482827,-500.0,0.00032876,11]
[328322332,1717163482836,-500.0,0.00032876,11]
[328322333,1717163482845,-500.0,0.00032876,11]
[328322334,1717163482854,-222.57378705,0.00032876,11]
[328322335,1717163482864,-174.793778,0.00032876,7]
[328322336,1717163482873,-500.0,0.00032876,11]
[328322337,1717163482882,-500.0,0.00032876,11]
[328322338,1717163482891,-500.0,0.00032876,11]
[328322339,1717163482900,-151.13221376,0.00032876,11]
[328322340,1717163482909,-500.0,0.00032876,11]
[328322341,1717163482918,-500.0,0.00032876,11]
[328322342,1717163482928,-500.0,0.00032876,11]
[328322343,1717163482937,-476.57447249,0.00032876,11]
[328322344,1717163482948,-500.0,0.00032876,11]
[328322345,1717163482958,-314.77,0.00032876,11]
[328322346,1717163482967,-500.0,0.00032876,11]
[328322347,1717163482977,-500.0,0.00032876,11]
[328322348,1717163482988,-500.0,0.00032876,11]
[328322349,1717163482998,-500.0,0.00032876,11]
[328322350,1717163483009,-500.0,0.00032876,11]
[328322351,1717163483019,-500.0,0.00032876,11]
[328322352,1717163483030,-500.0,0.00032876,11]
[328322353,1717163483039,-500.0,0.00032876,11]
[328322354,1717163483049,-500.0,0.00032876,11]
[328322355,1717163483058,-304.96,0.00032876,11]
[328322356,1717163483068,-500.0,0.00032876,11]
[328322357,1717163483078,-500.0,0.00032876,11]
[328322358,1717163483087,-500.0,0.00032876,11]
[328322359,1717163483097,-151.0,0.00032876,7]
[328322360,1717163483107,-500.0,0.00032876,11]
[328322361,1717163483118,-500.0,0.00032876,11]
[328322362,1717163483129,-500.0,0.00032876,11]
[328322363,1717163483138,-500.0,0.00032876,11]
[328322364,1717163483148,-500.0,0.00032876,11]
[328322365,1717163483160,-151.0,0.00032876,7]
[328322366,1717163483169,-500.0,0.00032876,11]
[328322367,1717163483181,-500.0,0.00032876,11]
[328322368,1717163483192,-500.0,0.00032876,11]
[328322369,1717163483201,-500.0,0.00032876,11]
[328322370,1717163483211,-500.0,0.00032876,11]
[328322371,1717163483220,-500.0,0.00032876,11]
[328322372,1717163483229,-526.04655106,0.00032876,11]
[328322373,1717163483238,-151.0,0.00032876,7]
[328322374,1717163483370,-500.0,0.00032876,11]
[328322375,1717163483380,-500.0,0.00032876,11]
[328322376,1717163483391,-500.0,0.00032876,11]
[328322377,1717163483401,-500.0,0.00032876,11]
[328322378,1717163483411,-500.0,0.00032876,11]
[328322379,1717163483421,-606.97789797,0.00032876,11]
[328322380,1717163483432,-500.0,0.00032876,11]
[328322381,1717163483442,-500.0,0.00032876,11]
[328322382,1717163483452,-736.69,0.00032876,11]
[328322383,1717163483461,-500.0,0.00032876,11]
[328322384,1717163483470,-500.0,0.00032876,11]
[328322385,1717163483479,-500.0,0.00032876,11]
[328322386,1717163483489,-736.69,0.00032876,11]
[328322387,1717163483499,-500.0,0.00032876,11]
[328322388,1717163483508,-500.0,0.00032876,11]
[328322389,1717163483517,-500.0,0.00032876,11]
[328322390,1717163483526,-500.0,0.00032876,11]
[328322391,1717163483535,-736.69,0.00032876,11]
[328322392,1717163483544,-500.0,0.00032876,11]
[328322393,1717163483554,-500.0,0.00032876,11]
[328322394,1717163483564,-500.0,0.00032876,11]
[328322395,1717163483574,-736.69,0.00032876,11]
[328322396,1717163483585,-500.0,0.00032876,11]
[328322397,1717163483594,-500.0,0.00032876,11]
[328322398,1717163483604,-500.0,0.00032876,11]
[328322399,1717163483614,-736.69,0.00032876,11]
[328322400,1717163483624,-500.0,0.00032876,11]
[328322401,1717163483638,-500.0,0.00032876,11]
[328322402,1717163483647,-500.0,0.00032876,11]
[328322403,1717163483656,-500.0,0.00032876,11]
[328322404,1717163483666,-736.69,0.00032876,11]
[328322405,1717163483675,-500.0,0.00032876,11]
[328322406,1717163483684,-500.0,0.00032876,11]
[328322407,1717163483695,-500.0,0.00032876,11]
[328322408,1717163483706,-736.69,0.00032876,11]
[328322409,1717163483715,-500.0,0.00032876,11]
[328322410,1717163483724,-576.36757676,0.00032876,11]
[328322411,1717163483827,-0.37058809,0.00032876,11]
[328322412,1717163483836,-736.69,0.00032876,11]
[328322413,1717163483845,-500.0,0.00032876,11]
[328322414,1717163483854,-500.0,0.00032876,11]
[328322415,1717163483864,-500.0,0.00032876,11]
[328322416,1717163483873,-263.86499,0.00032876,7]
[328322417,1717163483882,-151.0,0.00032876,7]
[328322418,1717163483891,-736.69,0.00032876,11]
[328322419,1717163483900,-500.0,0.00032876,11]
[328322420,1717163483909,-500.0,0.00032876,11]
[328322421,1717163483918,-500.0,0.00032876,11]
[328322422,1717163483927,-736.69,0.00032876,11]
[328322423,1717163483936,-212.705856,0.00032876,7]
[328322424,1717163483947,-36.88004221,0.00032876,11]
[328322425,1717163483959,-463.11995779,0.00032876,11]
[328322426,1717163483968,-500.0,0.00032876,11]
[328322427,1717163483978,-468.92539887,0.00032876,11]
[328322428,1717163483987,-500.0,0.00032876,11]
[328322429,1717163483997,-552.7,0.00032876,11]
[328322430,1717163484006,-500.0,0.00032876,11]
[328322431,1717163484016,-500.0,0.00032876,11]
[328322432,1717163484026,-500.0,0.00032876,11]
[328322433,1717163484035,-552.7,0.00032876,11]
[328322434,1717163484046,-736.69,0.00032876,11]
[328322435,1717163484055,-500.0,0.00032876,11]
[328322436,1717163484066,-500.0,0.00032876,11]
[328322437,1717163484076,-500.0,0.00032876,11]
[328322438,1717163484086,-552.7,0.00032876,11]
[328322439,1717163484096,-736.69,0.00032876,11]
[328322440,1717163484106,-500.0,0.00032876,11]
[328322441,1717163484116,-500.0,0.00032876,11]
[328322442,1717163484126,-500.0,0.00032876,11]
[328322443,1717163484135,-552.7,0.00032876,11]
[328322444,1717163484144,-536.62270102,0.00032876,11]
[328322445,1717163484154,-500.0,0.00032876,11]
[328322446,1717163484165,-500.0,0.00032876,11]
[328322447,1717163484175,-316.12821072,0.00032876,11]
[328322448,1717163484189,-183.87178928,0.00032876,11]
[328322449,1717163484200,-552.7,0.00032876,11]
[328322450,1717163484211,-500.0,0.00032876,11]
[328322451,1717163484220,-500.0,0.00032876,11]
[328322452,1717163484230,-500.0,0.00032876,11]
[328322453,1717163484240,-74.14222746,0.00032876,11]
[328322454,1717163484252,-478.55777254,0.00032876,11]
[328322455,1717163484262,-500.0,0.00032876,11]
[328322456,1717163484272,-500.0,0.00032876,11]
[328322457,1717163484281,-500.0,0.00032876,11]
[328322458,1717163484291,-552.7,0.00032876,11]
[328322459,1717163484302,-456.28442775,0.00032876,11]
[328322460,1717163484315,-43.71557225,0.00032876,11]
[328322461,1717163484325,-339.73442775,0.00032876,11]
[328322462,1717163484337,-160.26557225,0.00032876,11]
[328322463,1717163484346,-500.0,0.00032876,11]
[328322464,1717163484356,-552.7,0.00032876,11]
[328322465,1717163484365,-500.0,0.00032876,2]
[328322466,1717163484374,-500.0,0.00032876,11]
[328322467,1717163484384,-500.0,0.00032876,11]
[328322468,1717163484393,-500.0,0.00032876,2]
[328322469,1717163484402,-552.7,0.00032876,11]
[328322470,1717163484411,-500.0,0.00032876,11]
[328322471,1717163484420,-500.0,0.00032876,2]
[328322472,1717163484429,-552.7,0.00032876,11]
[328322473,1717163484439,-500.0,0.00032876,11]
[328322474,1717163484450,-500.0,0.00032876,11]
[328322475,1717163484459,-500.0,0.00032876,2]
[328322476,1717163484471,-552.7,0.00032876,11]
[328322477,1717163484481,-255.34227111,0.00032876,11]
[328322478,1717163484640,-244.65772889,0.00032876,11]
[328322479,1717163484651,-500.0,0.00032876,11]
[328322480,1717163484660,-500.0,0.00032876,2]
[328322481,1717163484671,-552.7,0.00032876,11]
[328322482,1717163484680,-269.23348422,0.00032876,11]
[328322483,1717163484714,-197.0,0.00032876,5]
[328322484,1717163484724,-71.19638077,0.00032876,11]
[328322485,1717163485054,1265.00919178,0.00032874,120]
[328322511,1717163729752,170.99,0.00032204,91]
[328322515,1717163918145,-268.0,0.00017259,2]
[328322525,1717164023510,4755.35114522,0.00033625,120]
[328322532,1717164301052,-1065.89322203,0.00017171,2]
[328322533,1717164301075,-2549.25537419,0.00017259,2]
[328322534,1717164301097,-35427.56624982,0.00017259,2]
[328322535,1717164301123,-19526.37388152,0.00019725,2]
[328322536,1717164301143,-550.35526376,0.0002,2]
[328322537,1717164301164,-634.6549469,0.0002,2]
[328322538,1717164303206,8157.90106178,0.00017072,2]
[328322539,1717164353177,-1508.74560112,0.00017072,2]
[328322540,1717164437340,-879.66075144,0.00016972,2]
[328322566,1717164633842,-1447.29190115,0.00016871,2]
[328322567,1717164633852,-1465.42725356,0.00016877,2]
[328322568,1717164633863,-700.0,0.00016877,2]
[328322569,1717164633899,-418.54007673,0.00016877,2]
[328322570,1717164633910,-746.19573271,0.00016877,2]
[328322571,1717164633920,-530.44,0.00016962,3]
[328322572,1717164633929,-302.80235908,0.00016971,2]
[328322573,1717164633940,-36.87608678,0.00016972,2]
[328322574,1717164633952,-8421.46922863,0.00016972,2]
[328322575,1717164633963,-3602.44257493,0.00016972,2]
[328322576,1717164633974,-14654.8062064,0.00016972,2]
[328322577,1717164633985,-6980.17624403,0.00016972,2]
[328322578,1717164633996,-472.04,0.00016972,2]
[328322579,1717164634066,-969.45652537,0.00016972,2]
[328322582,1717164634077,-3367.93087916,0.00016972,2]
[328322584,1717164634091,-1565.31339387,0.00016972,2]
[328322585,1717164634102,-811.05669613,0.00016972,2]
[328322608,1717164637921,-679.619,0.00016972,2]
[328322610,1717164637935,-586.65486403,0.00016972,2]
[328322611,1717164637947,-328160.42372519,0.00016972,2]
[328322612,1717164639203,-149466.74937651,0.00016972,2]
[328322614,1717164639214,-747.10225798,0.00016972,2]
[328322615,1717164639226,-338.48500056,0.00016972,2]
[328322616,1717164639237,-3643.80650199,0.00016972,2]
[328322617,1717164639249,-23741.5878383,0.00016972,2]
[328322618,1717164639260,-322.3360889,0.00021618,2]
[328322619,1717164639279,-171.44600648,0.00021718,2]
[328322620,1717164639291,-173.95,0.00021918,2]
[328322621,1717164639301,-171.44600648,0.00023358,2]
[328322622,1717164639311,-156.11,0.00024384,2]
[328322623,1717164639321,-171.44600648,0.00024999,2]
[328322624,1717164639331,-1050.0,0.00025,2]
[328322625,1717164639341,-171.44600648,0.00026639,2]
[328322626,1717164639351,-150.0,0.00026643,2]
[328322627,1717164639361,-808.0,0.00026643,2]
[328322628,1717164639371,-2400.0,0.00026643,2]
[328322629,1717164639381,-159.531,0.00026643,2]
[328322630,1717164639391,-151.063,0.00026643,2]
[328322631,1717164639400,-193.906,0.00026643,2]
[328322632,1717164639409,-205.167,0.00026643,2]
[328322633,1717164639419,-216.0,0.00026643,2]
[328322634,1717164639430,-1304.0,0.00026643,2]
[328322635,1717164639441,-249.414,0.00026643,2]
[328322636,1717164639451,-1652.0,0.00026643,2]
[328322637,1717164639461,-3167.0,0.00026643,2]
[328322638,1717164639472,-547.502,0.00026643,2]
[328322639,1717164639482,-1000.0,0.00027,2]
[328322640,1717164639493,-2267.726,0.00027381,2]
[328322641,1717164639503,-19147.59410278,0.00028278,2]
[328322642,1717164639517,-366.94391876,0.00028278,2]
[328322643,1717164639527,-171.44600648,0.00028279,2]
[328322644,1717164639537,-320.53,0.00028297,2]
[328322645,1717164639547,-1000.0,0.00029,5]
[328322646,1717164639556,-2323.0,0.000291,4]
[328322647,1717164639566,-455.44931026,0.00029258,2]
[328322648,1717164639575,-250.0,0.00029414,2]
[328322649,1717164639585,-136.33013383,0.0002946,2]
[328322650,1717164639597,-113.66986617,0.0002946,2]
[328322651,1717164639607,-637.25,0.00029544,2]
[328322652,1717164639616,-250.0,0.00029646,2]
[328322653,1717164639626,-166.75,0.00029872,2]
[328322654,1717164639635,-171.44600648,0.00029919,2]
[328322655,1717164639644,-728.27381328,0.0003,5]
[328322656,1717164639656,-271.72618672,0.0003,5]
[328322657,1717164639666,-2000.0,0.00030321,2]
[328322658,1717164639675,-320.53,0.00030561,2]
[328322659,1717164639686,-2935.31497104,0.00030693,2]
[328322660,1717164639698,-4499.67502896,0.00030693,2]
[328322661,1717164639708,-422.24,0.00030797,2]
[328322662,1717164639718,-69.18395096,0.00031429,7]
[328322711,1717164643351,-84.07356613,0.00031429,7]
[328322713,1717164643361,-500.0,0.00031506,11]
[328322714,1717164643370,-155.2740718,0.00031549,7]
[328322715,1717164643380,-171.44600648,0.0003156,2]
[328322716,1717164643390,-449.63571626,0.0003178,12]
[328322717,1717164643401,-50.36428374,0.0003178,12]
[328322718,1717164643411,-155.2740718,0.00031829,7]
[328322719,1717164643420,-134.58814446,0.00031849,7]
[328322720,1717164643691,-18.66937263,0.00031849,7]
[328322721,1717164643702,-1404.177596,0.00032,10]
[328322722,1717164643711,-705.08,0.00032,2]
[328322723,1717164643721,-153.82452482,0.00032052,7]
[328322724,1717164643731,-500.0,0.00032054,13]
[328322725,1717164643744,-155.5237192,0.00032093,7]
[328322726,1717164643753,-150.33411338,0.00032156,7]
[328322727,1717164643763,-1111.64061034,0.00032217,2]
[328322728,1717164643773,-637.25,0.00032284,2]